[Event "Late-Titled-Tuesday-Blitz-May-07-2024"]
[Site "Chess.com"]
[Date "2024.05.07"]
[Round "11"]
[White "cycygogne"]
[Black "Mariia89"]
[Result "1-0"]
[WhiteElo "2185"]
[BlackElo "2219"]
[TimeControl "180+1"]
[EndTime "16:06:56 PDT"]
[Termination "cycygogne won by checkmate"]

1. e4 {[%clk 0:03:00.9]} 1... c6 {[%clk 0:02:59.4]} 2. d4 {[%clk 0:03:00.5]}
2... d5 {[%clk 0:03:00.3]} 3. Nc3 {[%clk 0:03:00.9]} 3... dxe4 {[%clk
0:03:00.5]} 4. Nxe4 {[%clk 0:03:01.8]} 4... Nf6 {[%clk 0:03:01.4]} 5. Nxf6+
{[%clk 0:03:01.6]} 5... exf6 {[%clk 0:03:02]} 6. c3 {[%clk 0:03:02]} 6... Be7
{[%clk 0:03:02.6]} 7. Bd3 {[%clk 0:03:01.5]} 7... Na6 {[%clk 0:03:01.3]} 8. Qc2
{[%clk 0:02:52.8]} 8... Nc7 {[%clk 0:03:00.9]} 9. Ne2 {[%clk 0:02:48.4]} 9...
Nd5 {[%clk 0:03:00.5]} 10. O-O {[%clk 0:02:42.2]} 10... Be6 {[%clk 0:03:00.6]}
11. a3 {[%clk 0:02:36.9]} 11... Bg4 {[%clk 0:02:45.5]} 12. Re1 {[%clk
0:02:22.1]} 12... h6 {[%clk 0:02:28.4]} 13. c4 {[%clk 0:02:19.2]} 13... Nc7
{[%clk 0:02:28.3]} 14. Be3 {[%clk 0:02:17.5]} 14... O-O {[%clk 0:02:26.7]} 15.
Ng3 {[%clk 0:02:17.4]} 15... Re8 {[%clk 0:02:14.5]} 16. Nf5 {[%clk 0:02:16.6]}
16... Bxf5 {[%clk 0:02:14.1]} 17. Bxf5 {[%clk 0:02:17.5]} 17... Bd6 {[%clk
0:02:10.5]} 18. Qd2 {[%clk 0:01:59]} 18... h5 {[%clk 0:01:49.5]} 19. Rad1 {[%clk
0:01:39.5]} 19... g6 {[%clk 0:01:48.4]} 20. Bb1 {[%clk 0:01:35.4]} 20... Qd7
{[%clk 0:01:39.5]} 21. b4 {[%clk 0:01:19]} 21... Qg4 {[%clk 0:01:33]} 22. h3
{[%clk 0:01:13.8]} 22... Qh4 {[%clk 0:01:19.4]} 23. Qd3 {[%clk 0:00:53.9]} 23...
Ne6 {[%clk 0:00:47.3]} 24. d5 {[%clk 0:00:47.6]} 24... Nf4 {[%clk 0:00:38.4]}
25. Bxf4 {[%clk 0:00:46.3]} 25... Qxf4 {[%clk 0:00:38.1]} 26. g3 {[%clk
0:00:44.5]} 26... Qg5 {[%clk 0:00:15.6]} 27. dxc6 {[%clk 0:00:44.2]} 27... Be5
{[%clk 0:00:14.7]} 28. cxb7 {[%clk 0:00:44]} 28... Rab8 {[%clk 0:00:14.5]} 29.
Qf3 {[%clk 0:00:41.7]} 29... h4 {[%clk 0:00:10.5]} 30. Kg2 {[%clk 0:00:38.8]}
30... hxg3 {[%clk 0:00:10.4]} 31. fxg3 {[%clk 0:00:39.7]} 31... Re7 {[%clk
0:00:10.3]} 32. Rd5 {[%clk 0:00:38.8]} 32... Rexb7 {[%clk 0:00:09.6]} 33. h4
{[%clk 0:00:35.1]} 33... Qh6 {[%clk 0:00:08.9]} 34. Qg4 {[%clk 0:00:34.7]} 34...
Qg7 {[%clk 0:00:08.8]} 35. Red1 {[%clk 0:00:31.1]} 35... Re8 {[%clk 0:00:07.7]}
36. Rd8 {[%clk 0:00:30.8]} 36... Re7 {[%clk 0:00:08.2]} 37. Rxe8+ {[%clk
0:00:29.4]} 37... Rxe8 {[%clk 0:00:09.1]} 38. Rd7 {[%clk 0:00:29.3]} 38... Qf8
{[%clk 0:00:08.7]} 39. h5 {[%clk 0:00:28.6]} 39... Qg7 {[%clk 0:00:08.5]} 40.
hxg6 {[%clk 0:00:28]} 40... Qxg6 {[%clk 0:00:09.2]} 41. Bxg6 {[%clk 0:00:27.1]}
41... fxg6 {[%clk 0:00:10.1]} 42. Qxg6+ {[%clk 0:00:26.9]} 42... Kf8 {[%clk
0:00:10.4]} 43. Qg7# {[%clk 0:00:27.1]} 1-0

[Event "Late-Titled-Tuesday-Blitz-May-07-2024"]
[Site "Chess.com"]
[Date "2024.05.07"]
[Round "11"]
[White "eljanov"]
[Black "Arek_pacitan"]
[Result "1-0"]
[WhiteElo "2869"]
[BlackElo "2761"]
[TimeControl "180+1"]
[EndTime "16:06:57 PDT"]
[Termination "eljanov won by checkmate"]

1. d4 {[%clk 0:03:00.9]} 1... Nf6 {[%clk 0:02:59.5]} 2. Bf4 {[%clk 0:03:00.3]}
2... d6 {[%clk 0:02:58.9]} 3. Nc3 {[%clk 0:02:59.6]} 3... g6 {[%clk 0:02:57.9]}
4. e4 {[%clk 0:02:59.7]} 4... Bg7 {[%clk 0:02:57.7]} 5. Qd2 {[%clk 0:02:59.5]}
5... c6 {[%clk 0:02:58.3]} 6. Nf3 {[%clk 0:02:57.6]} 6... O-O {[%clk 0:02:55.6]}
7. Bh6 {[%clk 0:02:55.7]} 7... b5 {[%clk 0:02:54.4]} 8. Bxg7 {[%clk 0:02:55.4]}
8... Kxg7 {[%clk 0:02:55.3]} 9. Bd3 {[%clk 0:02:55.4]} 9... Nbd7 {[%clk
0:02:47.1]} 10. e5 {[%clk 0:02:37.2]} 10... dxe5 {[%clk 0:02:45.1]} 11. dxe5
{[%clk 0:02:37.2]} 11... Ng4 {[%clk 0:02:42.6]} 12. Qf4 {[%clk 0:02:37.3]} 12...
h5 {[%clk 0:02:33.1]} 13. h3 {[%clk 0:02:28.3]} 13... Nh6 {[%clk 0:02:31.7]} 14.
g4 {[%clk 0:02:23.8]} 14... Nc5 {[%clk 0:02:28.7]} 15. O-O-O {[%clk 0:02:18.3]}
15... Qa5 {[%clk 0:02:27.6]} 16. a3 {[%clk 0:02:08.2]} 16... b4 {[%clk
0:01:55.7]} 17. axb4 {[%clk 0:02:00.4]} 17... Qa1+ {[%clk 0:01:47.7]} 18. Kd2
{[%clk 0:01:41.6]} 18... Nb3+ {[%clk 0:01:47.6]} 19. cxb3 {[%clk 0:01:37.3]}
19... Qxb2+ {[%clk 0:01:48.5]} 20. Bc2 {[%clk 0:01:37.3]} 20... Rd8+ {[%clk
0:01:42]} 21. Nd4 {[%clk 0:01:37.5]} 21... Bf5 {[%clk 0:01:07]} 22. gxf5 {[%clk
0:01:22]} 22... Nxf5 {[%clk 0:01:07]} 23. Rb1 {[%clk 0:00:51.8]} 23... Qa3
{[%clk 0:01:04.1]} 24. Bxf5 {[%clk 0:00:49.9]} 24... Qxb4 {[%clk 0:01:03.9]} 25.
Kd3 {[%clk 0:00:23.5]} 25... c5 {[%clk 0:00:56.4]} 26. Ne2 {[%clk 0:00:22.4]}
26... cxd4 {[%clk 0:00:52.4]} 27. Rhc1 {[%clk 0:00:21.6]} 27... Qb5+ {[%clk
0:00:41]} 28. Rc4 {[%clk 0:00:21.5]} 28... e6 {[%clk 0:00:35.5]} 29. Bxe6 {[%clk
0:00:20]} 29... fxe6 {[%clk 0:00:34.6]} 30. Qf6+ {[%clk 0:00:20.2]} 30... Kh6
{[%clk 0:00:33.4]} 31. Nf4 {[%clk 0:00:20.5]} 31... Rg8 {[%clk 0:00:33.9]} 32.
Nxe6 {[%clk 0:00:19.3]} 32... Rac8 {[%clk 0:00:20.3]} 33. Qg5+ {[%clk 0:00:17]}
33... Kh7 {[%clk 0:00:20]} 34. Qe7+ {[%clk 0:00:16.4]} 34... Kh6 {[%clk
0:00:20.6]} 35. Nxd4 {[%clk 0:00:16.7]} 35... Qa6 {[%clk 0:00:19.3]} 36. Rg1
{[%clk 0:00:13.5]} 36... Rxc4 {[%clk 0:00:15.3]} 37. bxc4 {[%clk 0:00:13.9]}
37... Rc8 {[%clk 0:00:16]} 38. Nf5+ {[%clk 0:00:11.4]} 38... gxf5 {[%clk
0:00:13.3]} 39. Qg7# {[%clk 0:00:11.7]} 1-0

[Event "Late-Titled-Tuesday-Blitz-May-07-2024"]
[Site "Chess.com"]
[Date "2024.05.07"]
[Round "11"]
[White "lamomiajunior"]
[Black "cristianserban1"]
[Result "1-0"]
[WhiteElo "2777"]
[BlackElo "2652"]
[TimeControl "180+1"]
[EndTime "16:07:01 PDT"]
[Termination "lamomiajunior won by resignation"]

1. d4 {[%clk 0:03:00.9]} 1... Nf6 {[%clk 0:02:59.9]} 2. Nc3 {[%clk 0:03:01.2]}
2... d5 {[%clk 0:03:00.1]} 3. Bf4 {[%clk 0:03:01.8]} 3... c5 {[%clk 0:03:00]} 4.
e4 {[%clk 0:03:02.1]} 4... Nxe4 {[%clk 0:03:00.4]} 5. Bb5+ {[%clk 0:03:02.4]}
5... Nc6 {[%clk 0:02:49.5]} 6. Nxe4 {[%clk 0:03:02.5]} 6... dxe4 {[%clk
0:02:47.4]} 7. Ne2 {[%clk 0:03:03.4]} 7... Qa5+ {[%clk 0:02:38.8]} 8. Nc3 {[%clk
0:03:03.8]} 8... cxd4 {[%clk 0:01:50.1]} 9. Qxd4 {[%clk 0:03:02.9]} 9... Qxb5
{[%clk 0:01:50.2]} 10. Nxb5 {[%clk 0:03:03.8]} 10... Nxd4 {[%clk 0:01:50.5]} 11.
Nc7+ {[%clk 0:03:00.5]} 11... Kd8 {[%clk 0:01:50.6]} 12. O-O-O {[%clk
0:03:01.4]} 12... Bd7 {[%clk 0:01:50.9]} 13. Rxd4 {[%clk 0:03:00.1]} 13... Rc8
{[%clk 0:01:48.9]} 14. Rhd1 {[%clk 0:02:59.8]} 14... Rxc7 {[%clk 0:01:40.2]} 15.
Bxc7+ {[%clk 0:03:00.7]} 15... Kxc7 {[%clk 0:01:41.1]} 16. Rxd7+ {[%clk
0:03:01]} 16... Kc6 {[%clk 0:01:41.5]} 17. Rd8 {[%clk 0:03:00.9]} 17... g6
{[%clk 0:01:41.4]} 18. Kb1 {[%clk 0:03:01.1]} 18... Bg7 {[%clk 0:01:40.3]} 19.
R8d7 {[%clk 0:03:00.1]} 19... Bf6 {[%clk 0:01:37.5]} 20. c3 {[%clk 0:02:58.8]}
20... h5 {[%clk 0:01:36.9]} 21. Rd8 {[%clk 0:02:51.8]} 21... Rxd8 {[%clk
0:01:24.6]} 22. Rxd8 {[%clk 0:02:52.7]} 22... Be5 {[%clk 0:01:24.1]} 23. g3
{[%clk 0:02:52.6]} 23... a6 {[%clk 0:01:22.2]} 24. Kc2 {[%clk 0:02:50.3]} 24...
h4 {[%clk 0:01:04.2]} 25. Rd2 {[%clk 0:02:46.7]} 25... hxg3 {[%clk 0:01:04.2]}
26. hxg3 {[%clk 0:02:47]} 26... f5 {[%clk 0:00:58.9]} 27. Rd8 {[%clk 0:02:44.5]}
27... g5 {[%clk 0:00:56.1]} 28. Rg8 {[%clk 0:02:43.5]} 28... g4 {[%clk
0:00:56.2]} 29. Kb3 {[%clk 0:02:38.1]} 29... e3 {[%clk 0:00:54.2]} 30. fxe3
{[%clk 0:02:32.8]} 30... Bxg3 {[%clk 0:00:54.4]} 31. e4 {[%clk 0:02:21.6]} 31...
f4 {[%clk 0:00:34.1]} 32. Rxg4 {[%clk 0:02:16.7]} 32... b5 {[%clk 0:00:30.2]}
33. Kb4 {[%clk 0:02:07.9]} 33... Kd6 {[%clk 0:00:27.5]} 34. Rg5 {[%clk
0:02:00.1]} 34... e6 {[%clk 0:00:02.9]} 35. Kb3 {[%clk 0:01:14.9]} 35... Bh4
{[%clk 0:00:02.4]} 36. Rh5 {[%clk 0:01:08.6]} 36... Bf6 {[%clk 0:00:01.6]} 37.
Kc2 {[%clk 0:01:07.3]} 37... Be5 {[%clk 0:00:00.7]} 38. Kd3 {[%clk 0:01:07.1]}
38... a5 {[%clk 0:00:01.3]} 39. Ke2 {[%clk 0:00:53.4]} 39... b4 {[%clk
0:00:01.7]} 40. cxb4 {[%clk 0:00:52.4]} 40... axb4 {[%clk 0:00:01.7]} 41. b3
{[%clk 0:00:51.7]} 41... Bc3 {[%clk 0:00:01.9]} 42. Kf3 {[%clk 0:00:48.9]} 42...
e5 {[%clk 0:00:02.3]} 43. Rh6+ {[%clk 0:00:46.1]} 43... Kc5 {[%clk 0:00:02.8]}
44. Rh7 {[%clk 0:00:45.4]} 44... Bd4 {[%clk 0:00:02.1]} 45. Rc7+ {[%clk
0:00:45.2]} 45... Kb6 {[%clk 0:00:02.5]} 46. Rc4 {[%clk 0:00:44.3]} 46... Bc3
{[%clk 0:00:02.9]} 47. a4 {[%clk 0:00:39.5]} 47... bxa3 {[%clk 0:00:03.4]} 48.
Rxc3 {[%clk 0:00:39.4]} 48... a2 {[%clk 0:00:02.3]} 49. Rc1 {[%clk 0:00:38.9]}
49... Kb5 {[%clk 0:00:02.8]} 50. Ra1 {[%clk 0:00:39.5]} 50... Kb4 {[%clk
0:00:03.4]} 51. Rxa2 {[%clk 0:00:40.1]} 51... Kxb3 {[%clk 0:00:04.1]} 52. Ra5
{[%clk 0:00:40.7]} 1-0

[Event "Late-Titled-Tuesday-Blitz-May-07-2024"]
[Site "Chess.com"]
[Date "2024.05.07"]
[Round "11"]
[White "hikaruchija"]
[Black "Statham_01"]
[Result "1-0"]
[WhiteElo "2530"]
[BlackElo "2607"]
[TimeControl "180+1"]
[EndTime "16:07:01 PDT"]
[Termination "hikaruchija won on time"]

1. d4 {[%clk 0:03:00.9]} 1... e6 {[%clk 0:02:56.9]} 2. c4 {[%clk 0:03:00.9]}
2... b6 {[%clk 0:02:57.5]} 3. Nc3 {[%clk 0:03:00.4]} 3... Bb7 {[%clk 0:02:58]}
4. e4 {[%clk 0:03:00.1]} 4... Bb4 {[%clk 0:02:58.4]} 5. f3 {[%clk 0:03:00.2]}
5... f5 {[%clk 0:02:58]} 6. exf5 {[%clk 0:03:00]} 6... Nf6 {[%clk 0:02:58.1]} 7.
fxe6 {[%clk 0:02:58]} 7... O-O {[%clk 0:02:58.5]} 8. Bd3 {[%clk 0:02:57]} 8...
c5 {[%clk 0:02:56.7]} 9. Ne2 {[%clk 0:02:50.7]} 9... cxd4 {[%clk 0:02:56.8]} 10.
Nxd4 {[%clk 0:02:44.6]} 10... dxe6 {[%clk 0:02:57.3]} 11. Be3 {[%clk 0:02:35.3]}
11... Nc6 {[%clk 0:02:53.5]} 12. Nxc6 {[%clk 0:02:30.3]} 12... Bxc6 {[%clk
0:02:54.1]} 13. Qc2 {[%clk 0:02:29.4]} 13... Qe7 {[%clk 0:02:51.9]} 14. O-O
{[%clk 0:02:25.8]} 14... Rad8 {[%clk 0:02:47.4]} 15. Rfe1 {[%clk 0:02:24.4]}
15... Kh8 {[%clk 0:02:44.3]} 16. a3 {[%clk 0:02:19.3]} 16... Bc5 {[%clk
0:02:42.8]} 17. Rad1 {[%clk 0:02:16.5]} 17... Bxe3+ {[%clk 0:02:41]} 18. Rxe3
{[%clk 0:02:15.9]} 18... Qc5 {[%clk 0:02:41.9]} 19. Qf2 {[%clk 0:02:15.6]} 19...
Ng4 {[%clk 0:02:41.4]} 20. b4 {[%clk 0:02:09.1]} 20... Nxf2 {[%clk 0:02:40.4]}
21. bxc5 {[%clk 0:02:08.3]} 21... Nxd1 {[%clk 0:02:41.3]} 22. Nxd1 {[%clk
0:02:08.2]} 22... bxc5 {[%clk 0:02:41.5]} 23. Nf2 {[%clk 0:02:08]} 23... Rd6
{[%clk 0:02:40]} 24. Re5 {[%clk 0:02:07.1]} 24... Rfd8 {[%clk 0:02:29]} 25. Rxc5
{[%clk 0:02:05.7]} 25... Be8 {[%clk 0:02:28.4]} 26. Be4 {[%clk 0:01:55.5]} 26...
Ra6 {[%clk 0:02:27]} 27. Re5 {[%clk 0:01:52.8]} 27... Rxa3 {[%clk 0:02:25.4]}
28. h4 {[%clk 0:01:50.9]} 28... Ra1+ {[%clk 0:02:22.5]} 29. Kh2 {[%clk
0:01:50.3]} 29... Bf7 {[%clk 0:02:23]} 30. Nh3 {[%clk 0:01:49]} 30... h6 {[%clk
0:02:16.2]} 31. Nf4 {[%clk 0:01:48.6]} 31... a5 {[%clk 0:02:12.8]} 32. c5 {[%clk
0:01:46.7]} 32... a4 {[%clk 0:02:09.4]} 33. c6 {[%clk 0:01:46.9]} 33... Rc1
{[%clk 0:02:04.7]} 34. Ra5 {[%clk 0:01:45.9]} 34... Rc4 {[%clk 0:01:50.6]} 35.
Ra7 {[%clk 0:01:44.8]} 35... e5 {[%clk 0:01:36.6]} 36. Nd3 {[%clk 0:01:34.8]}
36... Bd5 {[%clk 0:00:24.5]} 37. Nxe5 {[%clk 0:01:30.5]} 37... Bxe4 {[%clk
0:00:24.2]} 38. Nxc4 {[%clk 0:01:26]} 38... Bxc6 {[%clk 0:00:23.7]} 39. Ne5
{[%clk 0:01:25.4]} 39... Be8 {[%clk 0:00:20.8]} 40. Rxa4 {[%clk 0:01:24.5]}
40... Rd5 {[%clk 0:00:16.8]} 41. Re4 {[%clk 0:01:22.9]} 41... Kh7 {[%clk
0:00:16.7]} 42. g4 {[%clk 0:01:18.4]} 42... Rd2+ {[%clk 0:00:15.8]} 43. Kg3
{[%clk 0:01:18]} 43... Ra2 {[%clk 0:00:14.9]} 44. h5 {[%clk 0:01:17.5]} 44...
Rb2 {[%clk 0:00:13.5]} 45. Rd4 {[%clk 0:01:15.2]} 45... Re2 {[%clk 0:00:08.9]}
46. Kf4 {[%clk 0:01:14.6]} 46... Ra2 {[%clk 0:00:06.8]} 47. Rd8 {[%clk
0:01:12.4]} 47... Ra4+ {[%clk 0:00:06.2]} 48. Kf5 {[%clk 0:01:10.2]} 48... Bb5
{[%clk 0:00:05.9]} 49. Ng6 {[%clk 0:01:06.9]} 49... Bd3+ {[%clk 0:00:01.8]} 50.
Rxd3 {[%clk 0:01:05.8]} 50... Ra2 {[%clk 0:00:01.7]} 51. Rd8 {[%clk 0:01:04.3]}
51... Ra5+ {[%clk 0:00:01.6]} 52. Kf4 {[%clk 0:01:04.1]} 52... Rf5+ {[%clk
0:00:01.3]} 53. Ke4 {[%clk 0:00:59.8]} 53... Rxh5 {[%clk 0:00:01.5]} 54. Nf8+
{[%clk 0:00:57.6]} 1-0

[Event "Late-Titled-Tuesday-Blitz-May-07-2024"]
[Site "Chess.com"]
[Date "2024.05.07"]
[Round "11"]
[White "RespectfulDaveOnYouTube"]
[Black "BabageldiAnnaberdiyev"]
[Result "1-0"]
[WhiteElo "2486"]
[BlackElo "2554"]
[TimeControl "180+1"]
[EndTime "16:07:01 PDT"]
[Termination "RespectfulDaveOnYouTube won by checkmate"]

1. e4 {[%clk 0:03:00.3]} 1... e6 {[%clk 0:03:00.9]} 2. g3 {[%clk 0:02:57.5]}
2... d5 {[%clk 0:03:01.1]} 3. exd5 {[%clk 0:02:56.7]} 3... exd5 {[%clk
0:03:00.8]} 4. Bg2 {[%clk 0:02:56.7]} 4... Nf6 {[%clk 0:03:00.2]} 5. Ne2 {[%clk
0:02:48.3]} 5... Bd6 {[%clk 0:02:58.8]} 6. O-O {[%clk 0:02:47.9]} 6... O-O
{[%clk 0:02:59.4]} 7. d4 {[%clk 0:02:46.7]} 7... h6 {[%clk 0:02:59.8]} 8. Bf4
{[%clk 0:02:42.4]} 8... c6 {[%clk 0:03:00.3]} 9. c4 {[%clk 0:02:38.7]} 9... dxc4
{[%clk 0:02:59.6]} 10. a4 {[%clk 0:02:38.5]} 10... Na6 {[%clk 0:02:58.7]} 11.
Nd2 {[%clk 0:02:37.7]} 11... Be6 {[%clk 0:02:58]} 12. Rc1 {[%clk 0:02:36.7]}
12... Bd5 {[%clk 0:02:54.1]} 13. Be5 {[%clk 0:02:26.5]} 13... Bxg2 {[%clk
0:02:49.1]} 14. Kxg2 {[%clk 0:02:26]} 14... b5 {[%clk 0:02:46.8]} 15. Nf4 {[%clk
0:02:14.3]} 15... Nb4 {[%clk 0:02:44.1]} 16. Qf3 {[%clk 0:02:13.5]} 16... Nbd5
{[%clk 0:02:40.3]} 17. axb5 {[%clk 0:02:05.6]} 17... Nxf4+ {[%clk 0:02:39.6]}
18. gxf4 {[%clk 0:01:57.9]} 18... cxb5 {[%clk 0:02:38.7]} 19. Rg1 {[%clk
0:01:46.8]} 19... Bxe5 {[%clk 0:02:25.3]} 20. fxe5 {[%clk 0:01:40.3]} 20... Nd5
{[%clk 0:02:25.9]} 21. Ne4 {[%clk 0:01:30.3]} 21... f6 {[%clk 0:02:22.3]} 22.
Kh1 {[%clk 0:01:09.6]} 22... fxe5 {[%clk 0:02:08.6]} 23. Qh5 {[%clk 0:00:49.4]}
23... Rf7 {[%clk 0:01:17.8]} 24. Qxe5 {[%clk 0:00:26.4]} 24... Qd7 {[%clk
0:00:36]} 25. Rg6 {[%clk 0:00:15.1]} 25... Nf4 {[%clk 0:00:32.5]} 26. Rxg7+
{[%clk 0:00:09.5]} 26... Kf8 {[%clk 0:00:25]} 27. Rxf7+ {[%clk 0:00:05]} 27...
Qxf7 {[%clk 0:00:25.9]} 28. Qd6+ {[%clk 0:00:02.8]} 28... Kg7 {[%clk 0:00:20.4]}
29. Rg1+ {[%clk 0:00:03.3]} 29... Ng6 {[%clk 0:00:19.6]} 30. Qe5+ {[%clk
0:00:02.1]} 30... Kf8 {[%clk 0:00:18.3]} 31. Qc5+ {[%clk 0:00:02.1]} 31... Kg7
{[%clk 0:00:17.8]} 32. Qe5+ {[%clk 0:00:02.1]} 32... Kf8 {[%clk 0:00:17]} 33.
Qd6+ {[%clk 0:00:02.8]} 33... Kg7 {[%clk 0:00:16.9]} 34. f4 {[%clk 0:00:03.3]}
34... Re8 {[%clk 0:00:15.2]} 35. Ng3 {[%clk 0:00:02.9]} 35... Qb7+ {[%clk
0:00:13.2]} 36. d5 {[%clk 0:00:02.8]} 36... Nxf4 {[%clk 0:00:11.3]} 37. Nf5+
{[%clk 0:00:01.9]} 37... Kf7 {[%clk 0:00:11.9]} 38. Rg7# {[%clk 0:00:01.9]} 1-0

[Event "Late-Titled-Tuesday-Blitz-May-07-2024"]
[Site "Chess.com"]
[Date "2024.05.07"]
[Round "11"]
[White "Durarbayli"]
[Black "jefferyx"]
[Result "1-0"]
[WhiteElo "2954"]
[BlackElo "3091"]
[TimeControl "180+1"]
[EndTime "16:07:05 PDT"]
[Termination "Durarbayli won on time"]

1. e4 {[%clk 0:03:00.9]} 1... e6 {[%clk 0:02:58.8]} 2. d4 {[%clk 0:03:00.7]}
2... d5 {[%clk 0:02:59.4]} 3. exd5 {[%clk 0:03:01.6]} 3... exd5 {[%clk
0:03:00.2]} 4. h3 {[%clk 0:03:02.4]} 4... Bd6 {[%clk 0:02:56.1]} 5. Bd3 {[%clk
0:03:01.9]} 5... Ne7 {[%clk 0:02:55]} 6. Bg5 {[%clk 0:03:00.1]} 6... Nbc6 {[%clk
0:02:49.2]} 7. c3 {[%clk 0:02:56.1]} 7... f6 {[%clk 0:02:36.2]} 8. Be3 {[%clk
0:02:51.9]} 8... Bf5 {[%clk 0:02:32.6]} 9. Bxf5 {[%clk 0:02:41]} 9... Nxf5
{[%clk 0:02:32.7]} 10. Qh5+ {[%clk 0:02:38.5]} 10... g6 {[%clk 0:02:32.5]} 11.
Qf3 {[%clk 0:02:39.1]} 11... Qe7 {[%clk 0:01:59.1]} 12. Nd2 {[%clk 0:02:21.2]}
12... Qe6 {[%clk 0:01:56.9]} 13. h4 {[%clk 0:02:03.8]} 13... O-O-O {[%clk
0:01:47.3]} 14. O-O-O {[%clk 0:02:03.2]} 14... Rhe8 {[%clk 0:01:38.8]} 15. Re1
{[%clk 0:01:59.5]} 15... h5 {[%clk 0:01:23.4]} 16. Rh3 {[%clk 0:01:59.3]} 16...
Re7 {[%clk 0:01:21.3]} 17. Re2 {[%clk 0:01:16.1]} 17... Qg8 {[%clk 0:01:20.1]}
18. g4 {[%clk 0:01:08.6]} 18... hxg4 {[%clk 0:01:19.9]} 19. Qxg4 {[%clk
0:01:09.5]} 19... Kb8 {[%clk 0:01:11.2]} 20. h5 {[%clk 0:00:53.4]} 20... gxh5
{[%clk 0:01:06.7]} 21. Qxf5 {[%clk 0:00:50.5]} 21... Qxg1+ {[%clk 0:01:06.1]}
22. Kc2 {[%clk 0:00:51.1]} 22... Qg4 {[%clk 0:00:44.9]} 23. Qxh5 {[%clk
0:00:47.8]} 23... f5 {[%clk 0:00:33]} 24. Qxg4 {[%clk 0:00:33.3]} 24... fxg4
{[%clk 0:00:33.9]} 25. Rh5 {[%clk 0:00:33.8]} 25... Bf4 {[%clk 0:00:34.3]} 26.
Nf1 {[%clk 0:00:30]} 26... Rf7 {[%clk 0:00:34.1]} 27. Bxf4 {[%clk 0:00:26]}
27... Rxf4 {[%clk 0:00:35]} 28. Ne3 {[%clk 0:00:26.2]} 28... Rdf8 {[%clk
0:00:22.1]} 29. Kd1 {[%clk 0:00:19.2]} 29... Ne7 {[%clk 0:00:09.9]} 30. Re5
{[%clk 0:00:18]} 30... Ng6 {[%clk 0:00:09.5]} 31. Rg5 {[%clk 0:00:18.1]} 31...
Nh4 {[%clk 0:00:05.1]} 32. Nxd5 {[%clk 0:00:14.4]} 32... Nf3 {[%clk 0:00:05.2]}
33. Rg7 {[%clk 0:00:11.1]} 33... R4f5 {[%clk 0:00:05]} 34. Nxc7 {[%clk
0:00:11.1]} 34... Rg5 {[%clk 0:00:02.4]} 35. Rxg5 {[%clk 0:00:06.6]} 35... Nxg5
{[%clk 0:00:03.3]} 36. Re8+ {[%clk 0:00:06.8]} 36... Rxe8 {[%clk 0:00:02.9]} 37.
Nxe8 {[%clk 0:00:07.7]} 37... Ne4 {[%clk 0:00:01.6]} 38. Ke2 {[%clk 0:00:08.1]}
38... Kc8 {[%clk 0:00:01.6]} 39. Ke3 {[%clk 0:00:08.3]} 39... Ng5 {[%clk
0:00:01]} 40. Nf6 {[%clk 0:00:08.6]} 1-0

[Event "Late-Titled-Tuesday-Blitz-May-07-2024"]
[Site "Chess.com"]
[Date "2024.05.07"]
[Round "11"]
[White "sammartin99"]
[Black "picturesquecheck"]
[Result "1-0"]
[WhiteElo "2602"]
[BlackElo "2458"]
[TimeControl "180+1"]
[EndTime "16:07:08 PDT"]
[Termination "sammartin99 won by resignation"]

1. d4 {[%clk 0:03:00.9]} 1... d6 {[%clk 0:02:58.7]} 2. e4 {[%clk 0:02:59.7]}
2... g6 {[%clk 0:02:53.2]} 3. Nf3 {[%clk 0:02:56.6]} 3... Bg7 {[%clk 0:02:49.1]}
4. Nc3 {[%clk 0:02:55.4]} 4... Nf6 {[%clk 0:02:48.7]} 5. h3 {[%clk 0:02:49.5]}
5... O-O {[%clk 0:02:46.3]} 6. Be3 {[%clk 0:02:46.4]} 6... e5 {[%clk 0:02:43.7]}
7. Be2 {[%clk 0:02:26]} 7... exd4 {[%clk 0:02:36.5]} 8. Nxd4 {[%clk 0:02:25.6]}
8... Re8 {[%clk 0:02:34.9]} 9. Bf3 {[%clk 0:02:17.8]} 9... Nc6 {[%clk
0:02:32.6]} 10. O-O {[%clk 0:02:01.5]} 10... Bd7 {[%clk 0:02:28.6]} 11. Re1
{[%clk 0:01:57.9]} 11... Nxd4 {[%clk 0:02:28.2]} 12. Bxd4 {[%clk 0:01:57.3]}
12... Bc6 {[%clk 0:02:28.7]} 13. Qd2 {[%clk 0:01:38.9]} 13... Nd7 {[%clk
0:02:25.1]} 14. Bxg7 {[%clk 0:01:35]} 14... Kxg7 {[%clk 0:02:26]} 15. b4 {[%clk
0:01:22.3]} 15... Ne5 {[%clk 0:02:21.5]} 16. Be2 {[%clk 0:01:21.7]} 16... b6
{[%clk 0:02:16.5]} 17. a4 {[%clk 0:01:17.7]} 17... a5 {[%clk 0:02:14.7]} 18. Nd5
{[%clk 0:01:04.5]} 18... Bxd5 {[%clk 0:02:10.6]} 19. exd5 {[%clk 0:01:02.7]}
19... axb4 {[%clk 0:02:05.5]} 20. Qxb4 {[%clk 0:01:02.2]} 20... Ra5 {[%clk
0:02:04.4]} 21. Bb5 {[%clk 0:00:57.2]} 21... Rf8 {[%clk 0:02:02.3]} 22. f4
{[%clk 0:00:47.3]} 22... Nd7 {[%clk 0:01:58.1]} 23. Qd4+ {[%clk 0:00:43.9]}
23... Qf6 {[%clk 0:01:55.1]} 24. Qxf6+ {[%clk 0:00:31.8]} 24... Nxf6 {[%clk
0:01:52.6]} 25. c4 {[%clk 0:00:32]} 25... Nh5 {[%clk 0:01:45.8]} 26. Re7 {[%clk
0:00:28.7]} 26... Rc8 {[%clk 0:01:37.8]} 27. Rf1 {[%clk 0:00:27.6]} 27... Kf6
{[%clk 0:01:28.5]} 28. Rd7 {[%clk 0:00:26.6]} 28... Ng3 {[%clk 0:01:25.8]} 29.
Re1 {[%clk 0:00:23.6]} 29... Ra7 {[%clk 0:01:17]} 30. Ree7 {[%clk 0:00:21.5]}
30... Rf8 {[%clk 0:01:16.4]} 31. Rxc7 {[%clk 0:00:21.5]} 31... Rxc7 {[%clk
0:01:13.7]} 32. Rxc7 {[%clk 0:00:22.4]} 32... Ne2+ {[%clk 0:01:13.1]} 33. Kf2
{[%clk 0:00:21.5]} 33... Nxf4 {[%clk 0:01:14]} 34. Rc6 {[%clk 0:00:18.8]} 34...
Ke5 {[%clk 0:01:12]} 35. Rxb6 {[%clk 0:00:18.6]} 35... Nd3+ {[%clk 0:01:11.7]}
36. Ke3 {[%clk 0:00:17.8]} 36... Nc5 {[%clk 0:01:07.5]} 37. a5 {[%clk
0:00:13.9]} 37... f5 {[%clk 0:01:05]} 38. g3 {[%clk 0:00:13.2]} 38... g5 {[%clk
0:01:02.6]} 39. a6 {[%clk 0:00:13.7]} 39... f4+ {[%clk 0:01:03]} 40. gxf4+
{[%clk 0:00:14.6]} 40... gxf4+ {[%clk 0:01:03.4]} 41. Kf3 {[%clk 0:00:15.1]}
41... Rf7 {[%clk 0:00:59]} 42. Rb8 {[%clk 0:00:12.4]} 42... Kd4 {[%clk
0:00:54.7]} 43. Rd8 {[%clk 0:00:10.2]} 43... Nd3 {[%clk 0:00:52.2]} 44. Rxd6
{[%clk 0:00:07]} 44... Ne5+ {[%clk 0:00:52.2]} 45. Kf2 {[%clk 0:00:06]} 45... f3
{[%clk 0:00:52]} 46. Rb6 {[%clk 0:00:04.2]} 46... Nd3+ {[%clk 0:00:51.9]} 47.
Kf1 {[%clk 0:00:04]} 47... f2 {[%clk 0:00:51]} 48. Rb7 {[%clk 0:00:04.4]} 48...
Rf3 {[%clk 0:00:47.8]} 49. c5 {[%clk 0:00:04.1]} 49... Nxc5 {[%clk 0:00:43.4]}
50. Rc7 {[%clk 0:00:03]} 50... Ne4 {[%clk 0:00:42.4]} 51. Rc4+ {[%clk
0:00:00.2]} 51... Kxd5 {[%clk 0:00:42.8]} 52. Rxe4 {[%clk 0:00:01]} 52... Kxe4
{[%clk 0:00:42.6]} 53. Bc6+ {[%clk 0:00:01.2]} 53... Kf4 {[%clk 0:00:40.3]} 54.
Bxf3 {[%clk 0:00:02.1]} 54... Kxf3 {[%clk 0:00:40.9]} 55. a7 {[%clk 0:00:02.8]}
55... Kg3 {[%clk 0:00:41.3]} 56. a8=Q {[%clk 0:00:03.3]} 56... Kxh3 {[%clk
0:00:42.2]} 57. Qh1+ {[%clk 0:00:03.2]} 1-0